[Event "Titled Tuesday Blitz January 03 Late 2023"]
[White "Rustemov, Alexander"]
[Black "Suder, Jakub"]
[WhiteFideId "4119002"]
[BlackFideId "1195310"]
[WhiteElo "2525"]
[BlackElo "2244"]
[Result "1/2-1/2"]
[Round "04"]
[TimeControl "180+2"]
[Date "2023.01.03"]
[WhiteClock "0:00:07"]
[BlackClock "0:00:07"]

1. d4 {[%clk 0:02:55]}  d5 {[%clk 0:02:59]} 2. c4 {[%clk 0:02:52]}  e6 {[%clk 0:03:00]} 3. Nc3 {[%clk 0:02:51]}  a6 {[%clk 0:03:00]} 4. cxd5 {[%clk 0:02:50]}  exd5 {[%clk 0:03:01]} 5. Nf3 {[%clk 0:02:50]}  Nf6 {[%clk 0:03:01]} 6. Bg5 {[%clk 0:02:50]}  Be6 {[%clk 0:03:01]} 7. e3 {[%clk 0:02:49]}  Nbd7 {[%clk 0:03:01]} 8. Qc2 {[%clk 0:02:48]}  Bd6 {[%clk 0:03:01]} 9. Bd3 {[%clk 0:02:47]}  c6 {[%clk 0:03:01]} 10. Bf4 {[%clk 0:02:47]}  Qb8 {[%clk 0:03:00]} 11. Bxd6 {[%clk 0:02:47]}  Qxd6 {[%clk 0:03:01]} 12. h3 {[%clk 0:02:47]}  O-O {[%clk 0:03:00]} 13. O-O {[%clk 0:02:48]}  c5 {[%clk 0:02:58]} 14. dxc5 {[%clk 0:02:47]}  Nxc5 {[%clk 0:02:59]} 15. Nd4 {[%clk 0:02:46]}  Rac8 {[%clk 0:02:56]} 16. Qe2 {[%clk 0:02:39]}  Rfd8 {[%clk 0:02:51]} 17. Rfd1 {[%clk 0:02:38]}  Qb6 {[%clk 0:02:50]} 18. Rac1 {[%clk 0:02:34]}  h6 {[%clk 0:02:45]} 19. Bb1 {[%clk 0:02:30]}  Kf8 {[%clk 0:02:40]} 20. b3 {[%clk 0:02:27]}  Qa5 {[%clk 0:02:37]} 21. Qb2 {[%clk 0:02:26]}  Qb6 {[%clk 0:02:30]} 22. Nce2 {[%clk 0:02:22]}  Nce4 {[%clk 0:02:27]} 23. Nf4 {[%clk 0:02:18]}  Qd6 {[%clk 0:02:19]} 24. Bxe4 {[%clk 0:02:15]}  Nxe4 {[%clk 0:02:18]} 25. Rxc8 {[%clk 0:02:09]}  Rxc8 {[%clk 0:02:18]} 26. Rc1 {[%clk 0:02:10]}  Rxc1+ {[%clk 0:02:12]} 27. Qxc1 {[%clk 0:02:10]}  Bd7 {[%clk 0:02:10]} 28. f3 {[%clk 0:02:07]}  Nf6 {[%clk 0:02:10]} 29. Kf2 {[%clk 0:02:05]}  g5 {[%clk 0:02:06]} 30. Nd3 {[%clk 0:02:05]}  h5 {[%clk 0:02:01]} 31. Qc5 {[%clk 0:01:58]}  Ke7 {[%clk 0:02:01]} 32. a4 {[%clk 0:01:54]}  b6 {[%clk 0:01:56]} 33. Qc3 {[%clk 0:01:47]}  h4 {[%clk 0:01:53]} 34. Ne2 {[%clk 0:01:45]}  a5 {[%clk 0:01:43]} 35. Qd4 {[%clk 0:01:37]}  Nh5 {[%clk 0:01:36]} 36. Qh8 {[%clk 0:01:29]}  Ng3 {[%clk 0:00:48]} 37. Qg7 {[%clk 0:01:27]}  Qf6 {[%clk 0:00:30]} 38. Qxf6+ {[%clk 0:01:26]}  Kxf6 {[%clk 0:00:31]} 39. Nxg3 {[%clk 0:01:27]}  hxg3+ {[%clk 0:00:32]} 40. Kxg3 {[%clk 0:01:27]}  Be6 {[%clk 0:00:30]} 41. Nc1 {[%clk 0:01:21]}  Ke5 {[%clk 0:00:30]} 42. Ne2 {[%clk 0:01:19]}  Bd7 {[%clk 0:00:26]} 43. Nd4 {[%clk 0:01:19]}  f5 {[%clk 0:00:25]} 44. Kf2 {[%clk 0:01:13]}  f4 {[%clk 0:00:24]} 45. Ke2 {[%clk 0:01:13]}  Be8 {[%clk 0:00:24]} 46. Kd2 {[%clk 0:01:11]}  Bd7 {[%clk 0:00:20]} 47. Kd3 {[%clk 0:01:09]}  Be8 {[%clk 0:00:20]} 48. Ne2 {[%clk 0:01:00]}  Bd7 {[%clk 0:00:18]} 49. h4 {[%clk 0:00:58]}  Bf5+ {[%clk 0:00:16]} 50. Kd2 {[%clk 0:00:58]}  fxe3+ {[%clk 0:00:16]} 51. Kxe3 {[%clk 0:00:57]}  gxh4 {[%clk 0:00:16]} 52. Nd4 {[%clk 0:00:53]}  Bd7 {[%clk 0:00:15]} 53. f4+ {[%clk 0:00:53]}  Kd6 {[%clk 0:00:16]} 54. Nf3 {[%clk 0:00:47]}  h3 {[%clk 0:00:15]} 55. gxh3 {[%clk 0:00:46]}  Bxh3 {[%clk 0:00:15]} 56. Kd4 {[%clk 0:00:43]}  Bf5 {[%clk 0:00:12]} 57. Nd2 {[%clk 0:00:35]}  Bc2 {[%clk 0:00:10]} 58. Kc3 {[%clk 0:00:35]}  Bf5 {[%clk 0:00:09]} 59. Nf3 {[%clk 0:00:35]}  Kc5 {[%clk 0:00:09]} 60. Nd4 {[%clk 0:00:35]}  Bd7 {[%clk 0:00:09]} 61. Nc2 {[%clk 0:00:30]}  Bf5 {[%clk 0:00:08]} 62. Nd4 {[%clk 0:00:25]}  Bd7 {[%clk 0:00:08]} 63. Kd3 {[%clk 0:00:24]}  Bg4 {[%clk 0:00:07]} 64. Ke3 {[%clk 0:00:20]}  Kd6 {[%clk 0:00:05]} 65. Nc2 {[%clk 0:00:18]}  Bf5 {[%clk 0:00:05]} 66. Na3 {[%clk 0:00:18]}  Kc5 {[%clk 0:00:04]} 67. Nb5 {[%clk 0:00:18]}  Bd7 {[%clk 0:00:05]} 68. Nd4 {[%clk 0:00:16]}  Kd6 {[%clk 0:00:05]} 69. Kf3 {[%clk 0:00:16]}  Kc5 {[%clk 0:00:04]} 70. Ke3 {[%clk 0:00:16]}  Kd6 {[%clk 0:00:05]} 71. Kd2 {[%clk 0:00:15]}  Kc5 {[%clk 0:00:04]} 72. Kd3 {[%clk 0:00:16]}  Kd6 {[%clk 0:00:04]} 73. Ke3 {[%clk 0:00:17]}  Kc5 {[%clk 0:00:04]} 74. f5 {[%clk 0:00:17]}  Kd6 {[%clk 0:00:02]} 75. Kf4 {[%clk 0:00:17]}  Be8 {[%clk 0:00:02]} 76. f6 {[%clk 0:00:17]}  Bf7 {[%clk 0:00:02]} 77. Kf5 {[%clk 0:00:16]}  Kc5 {[%clk 0:00:02]} 78. Ne6+ {[%clk 0:00:15]}  Kb4 {[%clk 0:00:01]} 79. Ng5 {[%clk 0:00:15]}  Bh5 {[%clk 0:00:02]} 80. Ne6 {[%clk 0:00:06]}  Kxb3 {[%clk 0:00:01]} 81. Kg5 {[%clk 0:00:05]}  Bf7 {[%clk 0:00:02]} 82. Nd8 {[%clk 0:00:05]}  Be8 {[%clk 0:00:02]} 83. Kf5 {[%clk 0:00:03]}  d4 {[%clk 0:00:02]} 84. Ne6 {[%clk 0:00:02]}  d3 {[%clk 0:00:02]} 85. Nd4+ {[%clk 0:00:01]}  Kc3 {[%clk 0:00:02]} 86. Nf3 {[%clk 0:00:02]}  Kc2 {[%clk 0:00:03]} 87. Ke6 {[%clk 0:00:02]}  d2 {[%clk 0:00:03]} 88. Nxd2 {[%clk 0:00:02]}  Kxd2 {[%clk 0:00:04]} 89. Kd6 {[%clk 0:00:02]}  Bh5 {[%clk 0:00:04]} 90. Kc7 {[%clk 0:00:03]}  Kc3 {[%clk 0:00:04]} 91. Kxb6 {[%clk 0:00:03]}  Kb4 {[%clk 0:00:05]} 92. Kc6 {[%clk 0:00:02]}  Bf7 {[%clk 0:00:06]} 93. Kd6 {[%clk 0:00:02]}  Kxa4 {[%clk 0:00:07]} 94. Kc5 {[%clk 0:00:02]}  Bh5 {[%clk 0:00:07]} 95. Kc4 {[%clk 0:00:03]}  Ka3 {[%clk 0:00:08]} 96. Kc3 {[%clk 0:00:03]}  a4 {[%clk 0:00:08]} 97. Kc2 {[%clk 0:00:03]}  Bf7 {[%clk 0:00:09]} 98. Kb1 {[%clk 0:00:04]}  Kb3 {[%clk 0:00:06]} 99. Ka1 {[%clk 0:00:05]}  a3 {[%clk 0:00:06]} 100. Kb1 {[%clk 0:00:06]}  a2+ {[%clk 0:00:06]} 101. Ka1 {[%clk 0:00:07]}  Ka3 {[%clk 0:00:07]} 1/2-1/2


[Site "https://www.chess.com"]

[Event "Titled Tuesday Blitz January 03 Late 2023"]
[White "Borges Feria, Yasel"]
[Black "Bayo Milagro, Alvaro"]
[WhiteFideId "3504921"]
[BlackFideId "22275240"]
[WhiteElo "2439"]
[BlackElo "2287"]
[Result "1-0"]
[Round "04"]
[TimeControl "180+2"]
[Date "2023.01.03"]
[WhiteClock "0:01:17"]
[BlackClock "0:01:00"]

1. e4 {[%clk 0:03:00]}  c6 {[%clk 0:02:59]} 2. Nc3 {[%clk 0:03:00]}  d5 {[%clk 0:02:59]} 3. Nf3 {[%clk 0:03:00]}  Bg4 {[%clk 0:02:59]} 4. h3 {[%clk 0:02:59]}  Bxf3 {[%clk 0:02:59]} 5. Qxf3 {[%clk 0:03:00]}  e6 {[%clk 0:02:57]} 6. d3 {[%clk 0:03:00]}  Nd7 {[%clk 0:02:56]} 7. g3 {[%clk 0:02:59]}  g6 {[%clk 0:02:56]} 8. Bg2 {[%clk 0:02:59]}  Bg7 {[%clk 0:02:57]} 9. O-O {[%clk 0:02:58]}  Ne7 {[%clk 0:02:57]} 10. Qe2 {[%clk 0:02:58]}  O-O {[%clk 0:02:58]} 11. Kh2 {[%clk 0:02:56]}  b5 {[%clk 0:02:56]} 12. f4 {[%clk 0:02:54]}  b4 {[%clk 0:02:56]} 13. Nd1 {[%clk 0:02:45]}  a5 {[%clk 0:02:55]} 14. Ne3 {[%clk 0:02:17]}  a4 {[%clk 0:02:52]} 15. a3 {[%clk 0:02:14]}  b3 {[%clk 0:02:52]} 16. c3 {[%clk 0:02:11]}  f5 {[%clk 0:02:36]} 17. e5 {[%clk 0:02:07]}  Qb6 {[%clk 0:02:30]} 18. Bd2 {[%clk 0:02:03]}  Qa6 {[%clk 0:02:28]} 19. Rae1 {[%clk 0:02:02]}  Nc5 {[%clk 0:02:24]} 20. c4 {[%clk 0:01:56]}  Rfd8 {[%clk 0:01:44]} 21. Bb4 {[%clk 0:01:52]}  Qb6 {[%clk 0:01:44]} 22. d4 {[%clk 0:01:48]}  Ne4 {[%clk 0:01:39]} 23. Bxe7 {[%clk 0:01:45]}  Rd7 {[%clk 0:01:40]} 24. c5 {[%clk 0:01:43]}  Qa5 {[%clk 0:01:36]} 25. Bd6 {[%clk 0:01:42]}  Rf7 {[%clk 0:01:30]} 26. Bxe4 {[%clk 0:01:41]}  fxe4 {[%clk 0:01:28]} 27. Rf2 {[%clk 0:01:38]}  Bh6 {[%clk 0:01:28]} 28. Ref1 {[%clk 0:01:38]}  Qd8 {[%clk 0:01:24]} 29. Ng4 {[%clk 0:01:36]}  Bg7 {[%clk 0:01:22]} 30. Nf6+ {[%clk 0:01:37]}  Bxf6 {[%clk 0:01:23]} 31. exf6 {[%clk 0:01:38]}  Qxf6 {[%clk 0:01:22]} 32. Be5 {[%clk 0:01:38]}  Qd8 {[%clk 0:01:21]} 33. g4 {[%clk 0:01:35]}  Qh4 {[%clk 0:01:17]} 34. Qe3 {[%clk 0:01:36]}  Raf8 {[%clk 0:01:15]} 35. Qg3 {[%clk 0:01:36]}  Qd8 {[%clk 0:01:15]} 36. Bd6 {[%clk 0:01:37]}  Re8 {[%clk 0:01:15]} 37. Be5 {[%clk 0:01:29]}  Qa5 {[%clk 0:01:15]} 38. f5 {[%clk 0:01:26]}  exf5 {[%clk 0:00:59]} 39. gxf5 {[%clk 0:01:26]}  Ref8 {[%clk 0:01:00]} 40. Bd6 {[%clk 0:01:17]} 1-0


[Site "https://www.chess.com"]

[Event "Titled Tuesday Blitz January 03 Late 2023"]
[White "Riehle, Marco"]
[Black "Sztokbant, Bernardo Vainzoff"]
[WhiteFideId "12904392"]
[BlackFideId "2115956"]
[WhiteElo "2368"]
[BlackElo "2213"]
[Result "1-0"]
[Round "04"]
[TimeControl "180+2"]
[Date "2023.01.03"]
[WhiteClock "0:01:28"]
[BlackClock "0:00:26"]

1. e4 {[%clk 0:03:00]}  c5 {[%clk 0:02:56]} 2. a3 {[%clk 0:03:00]}  d5 {[%clk 0:02:55]} 3. exd5 {[%clk 0:02:59]}  Qxd5 {[%clk 0:02:53]} 4. Nc3 {[%clk 0:02:59]}  Qd8 {[%clk 0:02:53]} 5. Nf3 {[%clk 0:03:00]}  Nc6 {[%clk 0:02:53]} 6. Bb5 {[%clk 0:02:56]}  Bd7 {[%clk 0:02:54]} 7. O-O {[%clk 0:02:53]}  Nf6 {[%clk 0:02:53]} 8. Re1 {[%clk 0:02:52]}  e6 {[%clk 0:02:53]} 9. d3 {[%clk 0:02:50]}  Be7 {[%clk 0:02:53]} 10. Bg5 {[%clk 0:02:49]}  O-O {[%clk 0:02:53]} 11. Bxc6 {[%clk 0:02:44]}  Bxc6 {[%clk 0:02:53]} 12. Ne5 {[%clk 0:02:45]}  Rc8 {[%clk 0:02:53]} 13. Nxc6 {[%clk 0:02:44]}  Rxc6 {[%clk 0:02:53]} 14. Qf3 {[%clk 0:02:42]}  h6 {[%clk 0:02:51]} 15. Bh4 {[%clk 0:02:38]}  Re8 {[%clk 0:02:50]} 16. Rad1 {[%clk 0:02:36]}  Rc7 {[%clk 0:02:46]} 17. h3 {[%clk 0:02:27]}  Rd7 {[%clk 0:02:45]} 18. b3 {[%clk 0:02:21]}  Nd5 {[%clk 0:02:34]} 19. Bxe7 {[%clk 0:02:19]}  Rexe7 {[%clk 0:02:33]} 20. Ne4 {[%clk 0:02:18]}  b6 {[%clk 0:02:28]} 21. Qg3 {[%clk 0:02:12]}  Re8 {[%clk 0:02:20]} 22. d4 {[%clk 0:01:58]}  Nf6 {[%clk 0:01:49]} 23. Nxf6+ {[%clk 0:01:55]}  Qxf6 {[%clk 0:01:50]} 24. dxc5 {[%clk 0:01:55]}  Rxd1 {[%clk 0:01:50]} 25. Rxd1 {[%clk 0:01:56]}  bxc5 {[%clk 0:01:50]} 26. a4 {[%clk 0:01:49]}  Rd8 {[%clk 0:01:45]} 27. Rd3 {[%clk 0:01:41]}  Qa1+ {[%clk 0:01:15]} 28. Kh2 {[%clk 0:01:40]}  Rxd3 {[%clk 0:01:16]} 29. Qxd3 {[%clk 0:01:41]}  Qe5+ {[%clk 0:01:13]} 30. g3 {[%clk 0:01:41]}  g6 {[%clk 0:01:12]} 31. h4 {[%clk 0:01:39]}  h5 {[%clk 0:01:12]} 32. a5 {[%clk 0:01:34]}  Kg7 {[%clk 0:00:55]} 33. a6 {[%clk 0:01:30]}  Qd5 {[%clk 0:00:24]} 34. Qc3+ {[%clk 0:01:28]}  Qd4 {[%clk 0:00:24]} 35. Qxd4+ {[%clk 0:01:28]}  cxd4 {[%clk 0:00:25]} 36. b4 {[%clk 0:01:28]}  Kf6 {[%clk 0:00:25]} 37. b5 {[%clk 0:01:28]}  Ke7 {[%clk 0:00:26]} 38. b6 {[%clk 0:01:28]} 1-0


[Site "https://www.chess.com"]

[Event "Titled Tuesday Blitz January 03 Late 2023"]
[White "Cristobal, Manuel"]
[Black "Goltseva, Ekaterina"]
[WhiteFideId "112879"]
[BlackFideId "24173770"]
[WhiteElo "2257"]
[BlackElo "2283"]
[Result "1-0"]
[Round "04"]
[TimeControl "180+2"]
[Date "2023.01.03"]
[WhiteClock "0:01:18"]
[BlackClock "0:00:03"]

1. d4 {[%clk 0:03:00]}  d5 {[%clk 0:01:12]} 2. Nf3 {[%clk 0:03:00]}  Nf6 {[%clk 0:01:11]} 3. e3 {[%clk 0:03:00]}  c5 {[%clk 0:01:11]} 4. Bd3 {[%clk 0:03:00]}  e6 {[%clk 0:01:11]} 5. O-O {[%clk 0:03:01]}  Bd6 {[%clk 0:01:12]} 6. b3 {[%clk 0:03:01]}  Nc6 {[%clk 0:01:12]} 7. Bb2 {[%clk 0:03:01]}  b6 {[%clk 0:01:13]} 8. Ne5 {[%clk 0:03:01]}  Bb7 {[%clk 0:01:13]} 9. Nd2 {[%clk 0:03:00]}  O-O {[%clk 0:01:13]} 10. f4 {[%clk 0:03:00]}  Ne7 {[%clk 0:01:14]} 11. Rf3 {[%clk 0:02:57]}  Ne4 {[%clk 0:01:08]} 12. Rh3 {[%clk 0:02:58]}  f6 {[%clk 0:01:03]} 13. Nxe4 {[%clk 0:02:49]}  dxe4 {[%clk 0:01:01]} 14. Bc4 {[%clk 0:02:50]}  Bd5 {[%clk 0:00:48]} 15. Qh5 {[%clk 0:02:26]}  h6 {[%clk 0:00:47]} 16. Ng4 {[%clk 0:02:24]}  Qe8 {[%clk 0:00:20]} 17. Nxh6+ {[%clk 0:02:20]}  gxh6 {[%clk 0:00:11]} 18. Qxh6 {[%clk 0:02:20]}  Qg6 {[%clk 0:00:06]} 19. Rg3 {[%clk 0:02:20]}  Qxg3 {[%clk 0:00:04]} 20. hxg3 {[%clk 0:02:21]}  Rf7 {[%clk 0:00:03]} 21. dxc5 {[%clk 0:02:16]}  bxc5 {[%clk 0:00:03]} 22. Bxf6 {[%clk 0:02:16]}  Rh7 {[%clk 0:00:03]} 23. Qg5+ {[%clk 0:02:16]}  Kf7 {[%clk 0:00:03]} 24. Bxd5 {[%clk 0:02:09]}  Nxd5 {[%clk 0:00:02]} 25. Bd8 {[%clk 0:01:44]}  Rc8 {[%clk 0:00:01]} 26. c4 {[%clk 0:01:42]}  Rg7 {[%clk 0:00:02]} 27. Qh5+ {[%clk 0:01:39]}  Kg8 {[%clk 0:00:02]} 28. Bg5 {[%clk 0:01:38]}  Nxe3 {[%clk 0:00:02]} 29. Re1 {[%clk 0:01:37]}  Nf5 {[%clk 0:00:03]} 30. g4 {[%clk 0:01:36]}  Ng3 {[%clk 0:00:02]} 31. Qh6 {[%clk 0:01:36]}  Rf8 {[%clk 0:00:02]} 32. Qxe6+ {[%clk 0:01:36]}  Rgf7 {[%clk 0:00:02]} 33. Qxe4 {[%clk 0:01:36]}  Nxe4 {[%clk 0:00:02]} 34. Rxe4 {[%clk 0:01:37]}  Bxf4 {[%clk 0:00:02]} 35. Bxf4 {[%clk 0:01:36]}  Rxf4 {[%clk 0:00:03]} 36. Re5 {[%clk 0:01:36]}  Rf1+ {[%clk 0:00:03]} 37. Kh2 {[%clk 0:01:36]}  R1f2 {[%clk 0:00:04]} 38. Rg5+ {[%clk 0:01:35]}  Kh7 {[%clk 0:00:04]} 39. Rxc5 {[%clk 0:01:35]}  Rxa2 {[%clk 0:00:04]} 40. b4 {[%clk 0:01:36]}  Rff2 {[%clk 0:00:04]} 41. Kg3 {[%clk 0:01:36]}  Rxg2+ {[%clk 0:00:05]} 42. Kf4 {[%clk 0:01:36]}  Rgf2+ {[%clk 0:00:05]} 43. Kg5 {[%clk 0:01:37]}  Rfb2 {[%clk 0:00:05]} 44. b5 {[%clk 0:01:37]}  Rc2 {[%clk 0:00:04]} 45. Rc7+ {[%clk 0:01:37]}  Kg8 {[%clk 0:00:05]} 46. Kf6 {[%clk 0:01:37]}  Rf2+ {[%clk 0:00:05]} 47. Kg6 {[%clk 0:01:37]}  Rf4 {[%clk 0:00:05]} 48. Rc8+ {[%clk 0:01:36]}  Rf8 {[%clk 0:00:05]} 49. Rc7 {[%clk 0:01:36]}  Rg2 {[%clk 0:00:04]} 50. g5 {[%clk 0:01:36]}  Rd8 {[%clk 0:00:04]} 51. Rxa7 {[%clk 0:01:35]}  Rd6+ {[%clk 0:00:04]} 52. Kf5 {[%clk 0:01:35]}  Rf2+ {[%clk 0:00:04]} 53. Ke5 {[%clk 0:01:35]}  Rd3 {[%clk 0:00:04]} 54. b6 {[%clk 0:01:34]}  Rb3 {[%clk 0:00:03]} 55. c5 {[%clk 0:01:34]}  Re2+ {[%clk 0:00:02]} 56. Kd6 {[%clk 0:01:34]}  Rd2+ {[%clk 0:00:02]} 57. Kc7 {[%clk 0:01:34]}  Rc2 {[%clk 0:00:03]} 58. Kc6 {[%clk 0:01:26]}  Rbc3 {[%clk 0:00:03]} 59. Ra5 {[%clk 0:01:26]}  Rb3 {[%clk 0:00:02]} 60. b7 {[%clk 0:01:26]}  Rcb2 {[%clk 0:00:03]} 61. Ra8+ {[%clk 0:01:25]}  Kf7 {[%clk 0:00:03]} 62. Ra7 {[%clk 0:01:25]}  Kg6 {[%clk 0:00:03]} 63. Kc7 {[%clk 0:01:25]}  Kxg5 {[%clk 0:00:03]} 64. c6 {[%clk 0:01:25]}  Rb5 {[%clk 0:00:03]} 65. Ra8 {[%clk 0:01:19]}  Re2 {[%clk 0:00:03]} 66. b8=Q {[%clk 0:01:19]}  Re7+ {[%clk 0:00:04]} 67. Kd6 {[%clk 0:01:18]}  Rxb8 {[%clk 0:00:04]} 68. Rxb8 {[%clk 0:01:18]}  Rf7 {[%clk 0:00:03]} 69. c7 {[%clk 0:01:18]} 1-0


[Site "https://www.chess.com"]

[Event "Titled Tuesday Blitz January 03 Late 2023"]
[White "Mei, Austin"]
[Black "Nasuta, Grzegorz"]
[WhiteFideId "30948479"]
[BlackFideId "1141686"]
[WhiteElo "2218"]
[BlackElo "2552"]
[Result "0-1"]
[Round "04"]
[TimeControl "180+2"]
[Date "2023.01.03"]
[WhiteClock "0:00:20"]
[BlackClock "0:00:09"]

1. e4 {[%clk 0:03:00]}  c5 {[%clk 0:02:59]} 2. Nf3 {[%clk 0:02:59]}  e6 {[%clk 0:02:58]} 3. d4 {[%clk 0:03:00]}  cxd4 {[%clk 0:02:59]} 4. Nxd4 {[%clk 0:03:01]}  a6 {[%clk 0:02:57]} 5. Bd3 {[%clk 0:03:00]}  Qc7 {[%clk 0:02:51]} 6. c4 {[%clk 0:02:54]}  Nc6 {[%clk 0:02:46]} 7. Nxc6 {[%clk 0:02:46]}  dxc6 {[%clk 0:02:45]} 8. Be3 {[%clk 0:02:45]}  e5 {[%clk 0:02:45]} 9. Nc3 {[%clk 0:02:45]}  Nf6 {[%clk 0:02:45]} 10. O-O {[%clk 0:02:44]}  Be7 {[%clk 0:02:45]} 11. Na4 {[%clk 0:02:41]}  O-O {[%clk 0:02:38]} 12. h3 {[%clk 0:02:30]}  Be6 {[%clk 0:02:36]} 13. Qc2 {[%clk 0:02:29]}  Nd7 {[%clk 0:02:32]} 14. a3 {[%clk 0:02:27]}  Rac8 {[%clk 0:02:26]} 15. b4 {[%clk 0:02:27]}  b5 {[%clk 0:02:24]} 16. Nb2 {[%clk 0:02:16]}  Rfd8 {[%clk 0:02:19]} 17. c5 {[%clk 0:02:13]}  Nf8 {[%clk 0:02:17]} 18. Rfd1 {[%clk 0:02:11]}  Ng6 {[%clk 0:02:17]} 19. Bf1 {[%clk 0:02:09]}  Nf4 {[%clk 0:02:14]} 20. Nd3 {[%clk 0:01:52]}  Bf6 {[%clk 0:02:12]} 21. Ne1 {[%clk 0:01:32]}  h6 {[%clk 0:02:07]} 22. Kh2 {[%clk 0:01:29]}  Bd7 {[%clk 0:01:50]} 23. Rd6 {[%clk 0:01:18]}  Be7 {[%clk 0:01:41]} 24. Rd2 {[%clk 0:01:16]}  Ne6 {[%clk 0:01:41]} 25. Rad1 {[%clk 0:01:15]}  Nd4 {[%clk 0:01:33]} 26. Qb2 {[%clk 0:01:05]}  Be6 {[%clk 0:01:21]} 27. Kg1 {[%clk 0:01:01]}  Bg5 {[%clk 0:00:58]} 28. Bxg5 {[%clk 0:00:46]}  hxg5 {[%clk 0:00:59]} 29. Nc2 {[%clk 0:00:46]}  Bb3 {[%clk 0:00:59]} 30. Rxd4 {[%clk 0:00:38]}  Rxd4 {[%clk 0:00:54]} 31. Rxd4 {[%clk 0:00:35]}  exd4 {[%clk 0:00:28]} 32. Qxb3 {[%clk 0:00:35]}  Qe5 {[%clk 0:00:29]} 33. Qd3 {[%clk 0:00:35]}  Rd8 {[%clk 0:00:29]} 34. Be2 {[%clk 0:00:33]}  g6 {[%clk 0:00:26]} 35. Bf3 {[%clk 0:00:27]}  Kg7 {[%clk 0:00:26]} 36. g3 {[%clk 0:00:27]}  Kg8 {[%clk 0:00:25]} 37. Kg2 {[%clk 0:00:27]}  Kg7 {[%clk 0:00:24]} 38. Ne1 {[%clk 0:00:28]}  Qe6 {[%clk 0:00:23]} 39. Bg4 {[%clk 0:00:27]}  Qc4 {[%clk 0:00:21]} 40. Be2 {[%clk 0:00:26]}  Qc3 {[%clk 0:00:19]} 41. e5 {[%clk 0:00:18]}  Qxe1 {[%clk 0:00:13]} 42. Bf3 {[%clk 0:00:19]}  Qc3 {[%clk 0:00:12]} 43. Qd1 {[%clk 0:00:18]}  d3 {[%clk 0:00:12]} 44. Bxc6 {[%clk 0:00:19]}  d2 {[%clk 0:00:12]} 45. Bf3 {[%clk 0:00:18]}  Qxe5 {[%clk 0:00:12]} 46. c6 {[%clk 0:00:19]}  Qc3 {[%clk 0:00:12]} 47. Kg1 {[%clk 0:00:14]}  Qc1 {[%clk 0:00:10]} 48. Kg2 {[%clk 0:00:15]}  Qxd1 {[%clk 0:00:09]} 49. Bxd1 {[%clk 0:00:15]}  Rc8 {[%clk 0:00:09]} 50. Kf1 {[%clk 0:00:14]}  Rxc6 {[%clk 0:00:08]} 51. Ke2 {[%clk 0:00:15]}  Rc3 {[%clk 0:00:08]} 52. a4 {[%clk 0:00:15]}  Rc4 {[%clk 0:00:04]} 53. axb5 {[%clk 0:00:13]}  axb5 {[%clk 0:00:05]} 54. Kxd2 {[%clk 0:00:14]}  Rxb4 {[%clk 0:00:06]} 55. Be2 {[%clk 0:00:15]}  Rb2+ {[%clk 0:00:05]} 56. Ke1 {[%clk 0:00:15]}  Kf6 {[%clk 0:00:05]} 57. Bd3 {[%clk 0:00:15]}  Ke5 {[%clk 0:00:05]} 58. h4 {[%clk 0:00:15]}  gxh4 {[%clk 0:00:05]} 59. gxh4 {[%clk 0:00:16]}  Kd4 {[%clk 0:00:06]} 60. Be2 {[%clk 0:00:15]}  Rxe2+ {[%clk 0:00:06]} 61. Kxe2 {[%clk 0:00:15]}  Kc3 {[%clk 0:00:06]} 62. f4 {[%clk 0:00:15]}  b4 {[%clk 0:00:06]} 63. f5 {[%clk 0:00:16]}  b3 {[%clk 0:00:06]} 64. h5 {[%clk 0:00:16]}  gxh5 {[%clk 0:00:06]} 65. f6 {[%clk 0:00:17]}  b2 {[%clk 0:00:07]} 66. Ke3 {[%clk 0:00:18]}  b1=Q {[%clk 0:00:07]} 67. Kf4 {[%clk 0:00:19]}  Qg6 {[%clk 0:00:07]} 68. Ke5 {[%clk 0:00:19]}  Qg5+ {[%clk 0:00:08]} 69. Kd6 {[%clk 0:00:20]}  Qxf6+ {[%clk 0:00:09]} 70. Kd7 {[%clk 0:00:20]}  Qe6+ {[%clk 0:00:09]} 0-1


[Site "https://www.chess.com"]

[Event "Titled Tuesday Blitz January 03 Late 2023"]
[White "Korchmar, Vasiliy"]
[Black "Reprintsev, Alexander"]
[WhiteFideId "24131750"]
[BlackFideId "14100541"]
[WhiteElo "2438"]
[BlackElo "2253"]
[Result "1-0"]
[Round "04"]
[TimeControl "180+2"]
[Date "2023.01.03"]
[WhiteClock "0:00:21"]
[BlackClock "0:00:02"]

1. e4 {[%clk 0:02:53]}  d5 {[%clk 0:02:43]} 2. exd5 {[%clk 0:02:54]}  Qxd5 {[%clk 0:02:42]} 3. Nc3 {[%clk 0:02:55]}  Qa5 {[%clk 0:02:42]} 4. d4 {[%clk 0:02:55]}  Nf6 {[%clk 0:02:43]} 5. Nf3 {[%clk 0:02:56]}  Nc6 {[%clk 0:02:42]} 6. Bb5 {[%clk 0:02:55]}  Ne4 {[%clk 0:02:42]} 7. O-O {[%clk 0:02:48]}  Nxc3 {[%clk 0:02:41]} 8. Bxc6+ {[%clk 0:02:48]}  bxc6 {[%clk 0:02:41]} 9. bxc3 {[%clk 0:02:26]}  Bf5 {[%clk 0:02:33]} 10. Bd2 {[%clk 0:02:13]}  e6 {[%clk 0:02:25]} 11. Ne5 {[%clk 0:02:11]}  Bd6 {[%clk 0:02:14]} 12. Nc4 {[%clk 0:01:40]}  Qa4 {[%clk 0:01:44]} 13. Ne3 {[%clk 0:01:29]}  Bg6 {[%clk 0:01:44]} 14. f4 {[%clk 0:01:30]}  O-O {[%clk 0:01:40]} 15. f5 {[%clk 0:01:28]}  exf5 {[%clk 0:01:40]} 16. Nxf5 {[%clk 0:01:29]}  Rae8 {[%clk 0:01:35]} 17. h4 {[%clk 0:01:03]}  Re6 {[%clk 0:01:32]} 18. h5 {[%clk 0:00:59]}  Bxf5 {[%clk 0:01:32]} 19. Rxf5 {[%clk 0:01:00]}  h6 {[%clk 0:01:28]} 20. Rf2 {[%clk 0:00:53]}  Rfe8 {[%clk 0:01:27]} 21. Qg4 {[%clk 0:00:47]}  R8e7 {[%clk 0:00:23]} 22. Raf1 {[%clk 0:00:47]}  Qxa2 {[%clk 0:00:11]} 23. Bf4 {[%clk 0:00:40]}  Bxf4 {[%clk 0:00:11]} 24. Qxf4 {[%clk 0:00:41]}  Qd5 {[%clk 0:00:09]} 25. Qg4 {[%clk 0:00:41]}  Qg5 {[%clk 0:00:08]} 26. Qh3 {[%clk 0:00:39]}  Re1 {[%clk 0:00:06]} 27. Rxf7 {[%clk 0:00:32]}  Rxf7 {[%clk 0:00:02]} 28. Rxe1 {[%clk 0:00:32]}  Qf5 {[%clk 0:00:01]} 29. Qxf5 {[%clk 0:00:19]}  Rxf5 {[%clk 0:00:02]} 30. Re7 {[%clk 0:00:20]}  Rf7 {[%clk 0:00:02]} 31. Re5 {[%clk 0:00:21]} 1-0


[Site "https://www.chess.com"]